[Event "*** Titled Tuesday Blitz"]
[Site "Chess.com"]
[Date "2018.09.04"]
[Round "5"]
[White "sergiochess83"]
[Black "nihalsarin"]
[Result "1-0"]
[WhiteElo "2753"]
[BlackElo "2859"]
[TimeControl "180+2"]
[EndTime "14:42:14 PDT"]
[Termination "sergiochess83 won by resignation"]

1. e4 {[%clk 0:03:01.9]} 1... c5 {[%clk 0:02:59.3]} 2. Nf3 {[%clk 0:03:01.8]}
2... e6 {[%clk 0:03:00.6]} 3. d4 {[%clk 0:03:01.9]} 3... cxd4 {[%clk 0:03:02.5]}
4. Nxd4 {[%clk 0:03:03.4]} 4... Nc6 {[%clk 0:03:03.7]} 5. Nc3 {[%clk 0:03:03.1]}
5... Qc7 {[%clk 0:03:05.1]} 6. Be3 {[%clk 0:02:59]} 6... a6 {[%clk 0:03:04.8]}
7. a3 {[%clk 0:02:59.9]} 7... Nf6 {[%clk 0:03:04]} 8. f4 {[%clk 0:02:59.7]} 8...
Nxd4 {[%clk 0:02:14.1]} 9. Qxd4 {[%clk 0:02:53.3]} 9... Ng4 {[%clk 0:02:15.5]}
10. Qb6 {[%clk 0:02:47.9]} 10... Bd6 {[%clk 0:02:11.8]} 11. Qxc7 {[%clk
0:02:28.7]} 11... Bxc7 {[%clk 0:02:13.7]} 12. Bd2 {[%clk 0:02:27.2]} 12... d6
{[%clk 0:02:14.4]} 13. a4 {[%clk 0:02:04.5]} 13... b6 {[%clk 0:02:12.2]} 14. Be2
{[%clk 0:01:57.5]} 14... Nf6 {[%clk 0:02:11]} 15. Bf3 {[%clk 0:01:58.9]} 15...
Bb7 {[%clk 0:02:12.4]} 16. O-O {[%clk 0:01:59.1]} 16... Nd7 {[%clk 0:01:59.5]}
17. Be3 {[%clk 0:01:57]} 17... Ke7 {[%clk 0:01:30.2]} 18. Rfd1 {[%clk 0:01:57]}
18... Rhd8 {[%clk 0:01:29.1]} 19. Kf2 {[%clk 0:01:57.3]} 19... Bc6 {[%clk
0:01:26.8]} 20. b4 {[%clk 0:01:12.9]} 20... a5 {[%clk 0:00:48.2]} 21. b5 {[%clk
0:01:00.6]} 21... Bb7 {[%clk 0:00:47.8]} 22. Rd3 {[%clk 0:00:57.7]} 22... Nc5
{[%clk 0:00:36.9]} 23. Bxc5 {[%clk 0:00:46.5]} 23... bxc5 {[%clk 0:00:33.2]} 24.
Rad1 {[%clk 0:00:43]} 24... Bb6 {[%clk 0:00:30.6]} 25. Ke2 {[%clk 0:00:40.5]}
25... c4 {[%clk 0:00:24.9]} 26. R3d2 {[%clk 0:00:41.3]} 26... Bc5 {[%clk
0:00:26.5]} 27. Nb1 {[%clk 0:00:37.2]} 27... Rd7 {[%clk 0:00:23.9]} 28. c3
{[%clk 0:00:27.5]} 28... Rad8 {[%clk 0:00:23.7]} 29. g3 {[%clk 0:00:25.7]} 29...
d5 {[%clk 0:00:19.5]} 30. exd5 {[%clk 0:00:26.7]} 30... exd5 {[%clk 0:00:19.1]}
31. Kf1 {[%clk 0:00:27.1]} 31... g6 {[%clk 0:00:17.5]} 32. Re2+ {[%clk
0:00:27.2]} 32... Kf6 {[%clk 0:00:18.8]} 33. Nd2 {[%clk 0:00:27.6]} 33... h5
{[%clk 0:00:10.6]} 34. Rde1 {[%clk 0:00:27.9]} 34... d4 {[%clk 0:00:10.2]} 35.
Bxb7 {[%clk 0:00:28.4]} 35... Rxb7 {[%clk 0:00:11.6]} 36. Ne4+ {[%clk
0:00:29.5]} 36... Kg7 {[%clk 0:00:13.2]} 37. Nxc5 {[%clk 0:00:31]} 37... Rc7
{[%clk 0:00:14.9]} 38. cxd4 {[%clk 0:00:31.9]} 38... Rxd4 {[%clk 0:00:16.7]} 39.
Re5 {[%clk 0:00:27.1]} 39... c3 {[%clk 0:00:17.3]} 40. b6 {[%clk 0:00:25.8]}
40... Rc6 {[%clk 0:00:18.7]} 41. b7 {[%clk 0:00:26.9]} 41... Rb4 {[%clk
0:00:20.2]} 42. Re8 {[%clk 0:00:23.9]} 42... Rcb6 {[%clk 0:00:16.6]} 43. Rc1
{[%clk 0:00:21.2]} 43... Rb1 {[%clk 0:00:17.4]} 44. Ree1 {[%clk 0:00:17.6]}
44... c2 {[%clk 0:00:17.3]} 45. Rxc2 {[%clk 0:00:17.5]} 45... R1b4 {[%clk
0:00:19]} 46. Kg2 {[%clk 0:00:16]} 46... h4 {[%clk 0:00:19.1]} 47. Re8 {[%clk
0:00:14]} 47... hxg3 {[%clk 0:00:20.4]} 48. hxg3 {[%clk 0:00:15.1]} 48... Rb1
{[%clk 0:00:21.4]} 49. Rc8 {[%clk 0:00:14.3]} 49... R1b4 {[%clk 0:00:21.7]} 50.
Ra8 {[%clk 0:00:14.5]} 50... Rb1 {[%clk 0:00:21.7]} 51. Rxa5 {[%clk 0:00:14.6]}
51... Rc6 {[%clk 0:00:23.3]} 52. Rb5 {[%clk 0:00:13.3]} 52... Rxb5 {[%clk
0:00:22.9]} 53. axb5 {[%clk 0:00:14.3]} 53... Rb6 {[%clk 0:00:24.8]} 54. Rd2
{[%clk 0:00:10.9]} 54... Rxb5 {[%clk 0:00:26.2]} 55. Rd8 {[%clk 0:00:11.7]}
55... Rxb7 {[%clk 0:00:27.6]} 56. Nxb7 {[%clk 0:00:12.3]} 1-0

[Event "*** Titled Tuesday Blitz"]
[Site "Chess.com"]
[Date "2018.09.04"]
[Round "5"]
[White "Margency"]
[Black "NikolaGry"]
[Result "0-1"]
[WhiteElo "2688"]
[BlackElo "2613"]
[TimeControl "180+2"]
[EndTime "14:42:20 PDT"]
[Termination "NikolaGry won by resignation"]

1. e4 {[%clk 0:03:01.9]} 1... d5 {[%clk 0:02:59.3]} 2. exd5 {[%clk 0:03:02.7]}
2... Nf6 {[%clk 0:03:00.8]} 3. Bb5+ {[%clk 0:03:02.9]} 3... Bd7 {[%clk
0:02:59.8]} 4. Be2 {[%clk 0:03:03.9]} 4... Nxd5 {[%clk 0:02:57.4]} 5. d4 {[%clk
0:03:05.1]} 5... Bf5 {[%clk 0:02:58.4]} 6. Nf3 {[%clk 0:03:04.9]} 6... e6 {[%clk
0:02:59]} 7. O-O {[%clk 0:03:05.4]} 7... Be7 {[%clk 0:02:59.9]} 8. a3 {[%clk
0:03:06.2]} 8... O-O {[%clk 0:02:58.6]} 9. c4 {[%clk 0:03:07.3]} 9... Nb6 {[%clk
0:02:59.6]} 10. Nc3 {[%clk 0:03:06.1]} 10... a5 {[%clk 0:02:51]} 11. b3 {[%clk
0:03:02.4]} 11... Nc6 {[%clk 0:02:50.4]} 12. h3 {[%clk 0:03:02.6]} 12... h6
{[%clk 0:02:44.6]} 13. Be3 {[%clk 0:03:02.8]} 13... Bf6 {[%clk 0:02:44.6]} 14.
Ra2 {[%clk 0:03:02.3]} 14... Qe7 {[%clk 0:02:40.2]} 15. Qc1 {[%clk 0:02:59.9]}
15... Rfd8 {[%clk 0:02:35.5]} 16. Rd2 {[%clk 0:02:59.7]} 16... Rd7 {[%clk
0:01:53.5]} 17. Re1 {[%clk 0:02:43.6]} 17... Rad8 {[%clk 0:01:52.3]} 18. d5
{[%clk 0:02:28]} 18... Bxc3 {[%clk 0:01:21.9]} 19. Qxc3 {[%clk 0:02:29]} 19...
exd5 {[%clk 0:01:22.1]} 20. Bxb6 {[%clk 0:02:29.2]} 20... cxb6 {[%clk
0:01:22.1]} 21. cxd5 {[%clk 0:02:29.9]} 21... Rxd5 {[%clk 0:01:01.1]} 22. Rxd5
{[%clk 0:02:29.1]} 22... Rxd5 {[%clk 0:01:01.2]} 23. Bc4 {[%clk 0:02:26.4]}
23... Qc5 {[%clk 0:00:55.5]} 24. Re8+ {[%clk 0:02:10]} 24... Kh7 {[%clk
0:00:53.2]} 25. Qe1 {[%clk 0:02:02.3]} 25... Rd7 {[%clk 0:00:43.2]} 26. Qe2
{[%clk 0:00:55.7]} 26... Nd4 {[%clk 0:00:33.5]} 27. Nxd4 {[%clk 0:00:36.1]}
27... Qxd4 {[%clk 0:00:33.9]} 28. a4 {[%clk 0:00:23.4]} 28... Qd1+ {[%clk
0:00:25.2]} 29. Qxd1 {[%clk 0:00:23.8]} 29... Rxd1+ {[%clk 0:00:25.8]} 30. Kh2
{[%clk 0:00:25.4]} 30... Rd7 {[%clk 0:00:25.6]} 31. Rb8 {[%clk 0:00:20.9]} 31...
Be6 {[%clk 0:00:24.9]} 32. Bxe6 {[%clk 0:00:20.4]} 32... fxe6 {[%clk 0:00:25.9]}
33. f3 {[%clk 0:00:21.4]} 33... Rd3 {[%clk 0:00:26.5]} 34. Rxb7 {[%clk 0:00:22]}
34... Rxb3 {[%clk 0:00:27.1]} 35. h4 {[%clk 0:00:23.6]} 35... h5 {[%clk
0:00:26.8]} 36. Kg3 {[%clk 0:00:24.4]} 36... Rb4 {[%clk 0:00:27.7]} 37. Kh3
{[%clk 0:00:24.5]} 37... Kg6 {[%clk 0:00:28.4]} 38. Kg3 {[%clk 0:00:25.5]} 38...
Kf6 {[%clk 0:00:29.5]} 39. Kh3 {[%clk 0:00:26]} 39... Rb3 {[%clk 0:00:27.8]} 40.
Kg3 {[%clk 0:00:26.6]} 40... Rb4 {[%clk 0:00:28.8]} 41. Kh3 {[%clk 0:00:27.4]}
41... Rxa4 {[%clk 0:00:28.9]} 42. Rxb6 {[%clk 0:00:28.2]} 42... Rb4 {[%clk
0:00:30.3]} 43. Ra6 {[%clk 0:00:29.1]} 43... a4 {[%clk 0:00:31.4]} 44. Ra5
{[%clk 0:00:30.4]} 44... g6 {[%clk 0:00:31.5]} 45. Kg3 {[%clk 0:00:30.1]} 45...
Rc4 {[%clk 0:00:32.5]} 46. Kh3 {[%clk 0:00:30.6]} 46... Rb4 {[%clk 0:00:33.1]}
47. Kg3 {[%clk 0:00:31.6]} 47... Ke7 {[%clk 0:00:32.6]} 48. Kh3 {[%clk
0:00:30.9]} 48... Kd6 {[%clk 0:00:30.9]} 49. Ra6+ {[%clk 0:00:31.4]} 49... Kd5
{[%clk 0:00:31.8]} 50. Ra5+ {[%clk 0:00:30.8]} 50... Kd4 {[%clk 0:00:30.5]} 51.
g4 {[%clk 0:00:28.5]} 51... Kc3 {[%clk 0:00:20.2]} 52. gxh5 {[%clk 0:00:28.6]}
52... gxh5 {[%clk 0:00:21.3]} 53. Rxh5 {[%clk 0:00:29.7]} 53... a3 {[%clk
0:00:22.2]} 54. Ra5 {[%clk 0:00:30.2]} 54... Kb3 {[%clk 0:00:23.4]} 55. h5
{[%clk 0:00:31.1]} 55... Ra4 {[%clk 0:00:22.4]} 56. Rb5+ {[%clk 0:00:29.6]}
56... Kc4 {[%clk 0:00:22.7]} 57. Rb1 {[%clk 0:00:30.3]} 57... a2 {[%clk
0:00:23.8]} 58. Ra1 {[%clk 0:00:31.9]} 58... Kc3 {[%clk 0:00:25]} 59. h6 {[%clk
0:00:32.9]} 59... Kb2 {[%clk 0:00:24.8]} 0-1

[Event "*** Titled Tuesday Blitz"]
[Site "Chess.com"]
[Date "2018.09.04"]
[Round "5"]
[White "snowlord"]
[Black "Bad4life"]
[Result "1-0"]
[WhiteElo "2708"]
[BlackElo "2431"]
[TimeControl "180+2"]
[EndTime "14:42:20 PDT"]
[Termination "snowlord won by resignation"]

1. d4 {[%clk 0:02:59.8]} 1... Nf6 {[%clk 0:03:00.9]} 2. c4 {[%clk 0:03:00.6]}
2... c5 {[%clk 0:02:59.7]} 3. d5 {[%clk 0:03:00.9]} 3... e6 {[%clk 0:03:01.3]}
4. Nc3 {[%clk 0:03:00.9]} 4... exd5 {[%clk 0:03:03]} 5. cxd5 {[%clk 0:03:01.3]}
5... d6 {[%clk 0:03:04.9]} 6. e4 {[%clk 0:03:01.2]} 6... g6 {[%clk 0:03:06.4]}
7. Nf3 {[%clk 0:03:01.4]} 7... Bg7 {[%clk 0:03:07.5]} 8. Bg5 {[%clk 0:03:03]}
8... h6 {[%clk 0:03:07.1]} 9. Bh4 {[%clk 0:02:50]} 9... O-O {[%clk 0:03:07.9]}
10. Nd2 {[%clk 0:02:41.3]} 10... Re8 {[%clk 0:03:07.2]} 11. Be2 {[%clk
0:02:40.3]} 11... Na6 {[%clk 0:03:07.6]} 12. O-O {[%clk 0:02:40]} 12... Nc7
{[%clk 0:03:08.7]} 13. a4 {[%clk 0:02:35.1]} 13... a6 {[%clk 0:03:09.5]} 14. f4
{[%clk 0:02:35.7]} 14... Bd7 {[%clk 0:02:47.6]} 15. e5 {[%clk 0:01:41.5]} 15...
dxe5 {[%clk 0:02:48]} 16. d6 {[%clk 0:01:42.7]} 16... exf4 {[%clk 0:02:17.1]}
17. dxc7 {[%clk 0:01:36.1]} 17... Qxc7 {[%clk 0:02:17.9]} 18. Kh1 {[%clk
0:01:32.1]} 18... Bc6 {[%clk 0:02:09.8]} 19. Bf3 {[%clk 0:01:29.2]} 19... g5
{[%clk 0:02:08.4]} 20. Bf2 {[%clk 0:01:27.2]} 20... Rad8 {[%clk 0:02:09.7]} 21.
Qc2 {[%clk 0:01:23.3]} 21... Qd7 {[%clk 0:02:04.9]} 22. Rad1 {[%clk 0:01:22]}
22... g4 {[%clk 0:02:01.5]} 23. Bxc6 {[%clk 0:01:11.1]} 23... Qxc6 {[%clk
0:02:02.4]} 24. Qf5 {[%clk 0:01:02.9]} 24... f3 {[%clk 0:01:48.2]} 25. gxf3
{[%clk 0:01:00.9]} 25... h5 {[%clk 0:01:09.3]} 26. Bh4 {[%clk 0:00:54.6]} 26...
Rd6 {[%clk 0:01:03]} 27. Nde4 {[%clk 0:00:50.4]} 27... Nxe4 {[%clk 0:00:40.5]}
28. fxe4 {[%clk 0:00:44.3]} 28... Rf8 {[%clk 0:00:13.6]} 29. Rxd6 {[%clk
0:00:40.6]} 29... Qxd6 {[%clk 0:00:14.6]} 30. Nd5 {[%clk 0:00:42.3]} 30... Qe6
{[%clk 0:00:12.4]} 31. Ne7+ {[%clk 0:00:41.8]} 31... Kh8 {[%clk 0:00:11.6]} 32.
Qxe6 {[%clk 0:00:14.7]} 32... fxe6 {[%clk 0:00:12.6]} 33. Ng6+ {[%clk
0:00:16.2]} 33... Kg8 {[%clk 0:00:14.1]} 34. Nxf8 {[%clk 0:00:17.8]} 34... Bxf8
{[%clk 0:00:16]} 35. Bf6 {[%clk 0:00:16.4]} 35... b5 {[%clk 0:00:16.7]} 36. axb5
{[%clk 0:00:16.9]} 36... axb5 {[%clk 0:00:18.6]} 37. e5 {[%clk 0:00:18.7]} 37...
Bh6 {[%clk 0:00:18.9]} 38. Ra1 {[%clk 0:00:20.4]} 38... Be3 {[%clk 0:00:19.2]}
39. Ra8+ {[%clk 0:00:22.3]} 39... Kf7 {[%clk 0:00:19.1]} 40. Rb8 {[%clk
0:00:24.2]} 40... b4 {[%clk 0:00:19.9]} 41. Kg2 {[%clk 0:00:26.1]} 41... Kg6
{[%clk 0:00:21.2]} 42. Rb7 {[%clk 0:00:28]} 42... Kf5 {[%clk 0:00:22.1]} 43. Rh7
{[%clk 0:00:29.2]} 43... Kg6 {[%clk 0:00:22]} 44. Rd7 {[%clk 0:00:29.7]} 44...
b3 {[%clk 0:00:20]} 45. Rd3 {[%clk 0:00:30.3]} 45... Bd4 {[%clk 0:00:17.7]} 46.
Rxb3 {[%clk 0:00:31.3]} 46... c4 {[%clk 0:00:19.3]} 47. Rb4 {[%clk 0:00:32.2]}
47... Kf5 {[%clk 0:00:20.4]} 48. Rxc4 {[%clk 0:00:31.2]} 48... Bxb2 {[%clk
0:00:21.7]} 49. Rc8 {[%clk 0:00:32.9]} 49... Bc1 {[%clk 0:00:22.9]} 50. Rh8
{[%clk 0:00:31.1]} 50... Kg6 {[%clk 0:00:20.7]} 51. Rc8 {[%clk 0:00:31.3]} 51...
Be3 {[%clk 0:00:21.4]} 52. Re8 {[%clk 0:00:32.1]} 52... Kf5 {[%clk 0:00:22.1]}
53. h3 {[%clk 0:00:31.4]} 53... Bf4 {[%clk 0:00:21.5]} 54. Rh8 {[%clk
0:00:31.4]} 54... Kg6 {[%clk 0:00:20.5]} 55. Rg8+ {[%clk 0:00:32.6]} 55... Kf5
{[%clk 0:00:21.7]} 56. Bh8 {[%clk 0:00:33.8]} 56... gxh3+ {[%clk 0:00:20.4]} 57.
Kxh3 {[%clk 0:00:34.7]} 57... Bxe5 {[%clk 0:00:19.1]} 58. Rf8+ {[%clk
0:00:32.7]} 58... Ke4 {[%clk 0:00:19.9]} 59. Bxe5 {[%clk 0:00:31.6]} 59... Kxe5
{[%clk 0:00:21.8]} 60. Kh4 {[%clk 0:00:33.5]} 60... Ke4 {[%clk 0:00:22.9]} 61.
Kxh5 {[%clk 0:00:34.9]} 61... e5 {[%clk 0:00:24.2]} 62. Kg4 {[%clk 0:00:36.1]}
62... Ke3 {[%clk 0:00:25.4]} 63. Re8 {[%clk 0:00:37.4]} 63... Kd4 {[%clk
0:00:25.4]} 64. Kf5 {[%clk 0:00:37.7]} 64... e4 {[%clk 0:00:26.8]} 1-0

[Event "*** Titled Tuesday Blitz"]
[Site "Chess.com"]
[Date "2018.09.04"]
[Round "5"]
[White "chessmaxusa"]
[Black "Orest_Vovk"]
[Result "0-1"]
[WhiteElo "2495"]
[BlackElo "2426"]
[TimeControl "180+2"]
[EndTime "14:42:38 PDT"]
[Termination "Orest_Vovk won by resignation"]

1. d4 {[%clk 0:03:01.9]} 1... Nc6 {[%clk 0:02:59.8]} 2. Nf3 {[%clk 0:03:02.8]}
2... d6 {[%clk 0:03:00.2]} 3. Bf4 {[%clk 0:03:04.1]} 3... Bg4 {[%clk 0:02:58.7]}
4. e3 {[%clk 0:03:05.2]} 4... e6 {[%clk 0:02:54.4]} 5. Be2 {[%clk 0:03:05.7]}
5... Be7 {[%clk 0:02:55]} 6. h3 {[%clk 0:03:06.7]} 6... Bxf3 {[%clk 0:02:54.3]}
7. Bxf3 {[%clk 0:03:07]} 7... Bg5 {[%clk 0:02:55]} 8. Bh2 {[%clk 0:03:07.1]}
8... Nge7 {[%clk 0:02:50.8]} 9. O-O {[%clk 0:03:08]} 9... O-O {[%clk 0:02:51]}
10. c4 {[%clk 0:03:09.3]} 10... e5 {[%clk 0:02:44.2]} 11. Nc3 {[%clk 0:03:09.2]}
11... exd4 {[%clk 0:02:41.5]} 12. exd4 {[%clk 0:03:09.5]} 12... Nf5 {[%clk
0:02:41.5]} 13. d5 {[%clk 0:02:40]} 13... Ne5 {[%clk 0:02:35.6]} 14. Be2 {[%clk
0:02:39.6]} 14... Bh6 {[%clk 0:02:22.1]} 15. b3 {[%clk 0:02:17]} 15... Qh4
{[%clk 0:02:18.8]} 16. Nb5 {[%clk 0:02:09.6]} 16... Rfc8 {[%clk 0:02:12.2]} 17.
Bg4 {[%clk 0:02:06.5]} 17... Nxg4 {[%clk 0:02:05.8]} 18. hxg4 {[%clk 0:02:06]}
18... Ne7 {[%clk 0:01:55.1]} 19. Nd4 {[%clk 0:02:01.5]} 19... Bg5 {[%clk
0:01:36.6]} 20. Qf3 {[%clk 0:01:52.3]} 20... Bf6 {[%clk 0:01:33.9]} 21. Rad1
{[%clk 0:01:51.9]} 21... Bxd4 {[%clk 0:01:30.3]} 22. Rxd4 {[%clk 0:01:52.6]}
22... Ng6 {[%clk 0:01:31.6]} 23. Re4 {[%clk 0:01:45.8]} 23... Re8 {[%clk
0:01:26.2]} 24. Rfe1 {[%clk 0:01:46.1]} 24... Rxe4 {[%clk 0:01:26.6]} 25. Qxe4
{[%clk 0:01:43.2]} 25... h6 {[%clk 0:01:13]} 26. Bg3 {[%clk 0:01:43]} 26... Qg5
{[%clk 0:01:12.5]} 27. Re2 {[%clk 0:01:29.7]} 27... b6 {[%clk 0:01:07.9]} 28.
Qf5 {[%clk 0:01:24.4]} 28... Rd8 {[%clk 0:00:51.1]} 29. a4 {[%clk 0:01:21]}
29... a5 {[%clk 0:00:51.7]} 30. f4 {[%clk 0:01:10.8]} 30... Qxf5 {[%clk
0:00:43.6]} 31. gxf5 {[%clk 0:01:11.2]} 31... Nf8 {[%clk 0:00:44.6]} 32. Re7
{[%clk 0:01:06.6]} 32... Nd7 {[%clk 0:00:45.2]} 33. Bh4 {[%clk 0:01:01.8]} 33...
f6 {[%clk 0:00:30.8]} 34. Bf2 {[%clk 0:00:47.8]} 34... Kf8 {[%clk 0:00:31.6]}
35. Re6 {[%clk 0:00:41.3]} 35... Kf7 {[%clk 0:00:32.2]} 36. Kh2 {[%clk
0:00:32.3]} 36... Nf8 {[%clk 0:00:28.7]} 37. Re4 {[%clk 0:00:31.5]} 37... Re8
{[%clk 0:00:26]} 38. Rxe8 {[%clk 0:00:32.2]} 38... Kxe8 {[%clk 0:00:27.8]} 39.
Kg3 {[%clk 0:00:33.2]} 39... Nd7 {[%clk 0:00:27.1]} 40. Kf3 {[%clk 0:00:33.9]}
40... Kf7 {[%clk 0:00:26.6]} 41. g4 {[%clk 0:00:33.9]} 41... Nb8 {[%clk
0:00:22.8]} 42. Ke4 {[%clk 0:00:32.8]} 42... Na6 {[%clk 0:00:22.7]} 43. Kd3
{[%clk 0:00:34.1]} 43... g6 {[%clk 0:00:23.3]} 44. Ke4 {[%clk 0:00:30.9]} 44...
Nb4 {[%clk 0:00:19.6]} 45. fxg6+ {[%clk 0:00:24.6]} 45... Kxg6 {[%clk
0:00:21.5]} 46. Kf3 {[%clk 0:00:22.4]} 46... Nc2 {[%clk 0:00:20]} 47. f5+ {[%clk
0:00:18.5]} 47... Kg7 {[%clk 0:00:19.7]} 48. Bg3 {[%clk 0:00:15.2]} 48... Na1
{[%clk 0:00:17.8]} 49. Ke3 {[%clk 0:00:15.9]} 49... Nxb3 {[%clk 0:00:18.3]} 50.
Kd3 {[%clk 0:00:17.8]} 50... Nc5+ {[%clk 0:00:18.7]} 51. Kc3 {[%clk 0:00:18.8]}
51... Nxa4+ {[%clk 0:00:20.6]} 52. Kd4 {[%clk 0:00:19.8]} 52... Nc5 {[%clk
0:00:21.4]} 53. Bf4 {[%clk 0:00:20.8]} 53... Nd7 {[%clk 0:00:21.8]} 54. Bd2
{[%clk 0:00:21.1]} 54... Ne5 {[%clk 0:00:22.7]} 55. Be1 {[%clk 0:00:20.5]} 55...
Nxg4 {[%clk 0:00:23.4]} 56. Bd2 {[%clk 0:00:20.9]} 56... Ne5 {[%clk 0:00:24.3]}
57. c5 {[%clk 0:00:20]} 57... Nf3+ {[%clk 0:00:23.2]} 58. Kd3 {[%clk 0:00:20]}
58... Nxd2 {[%clk 0:00:23.9]} 59. cxb6 {[%clk 0:00:19.5]} 59... cxb6 {[%clk
0:00:25]} 60. Kxd2 {[%clk 0:00:20.1]} 60... Kf7 {[%clk 0:00:26.1]} 61. Kd3
{[%clk 0:00:22]} 61... Ke7 {[%clk 0:00:27]} 62. Kd4 {[%clk 0:00:23.9]} 62... h5
{[%clk 0:00:28]} 63. Kc4 {[%clk 0:00:25.8]} 63... h4 {[%clk 0:00:29.2]} 64. Kd4
{[%clk 0:00:27.7]} 64... h3 {[%clk 0:00:30.3]} 65. Ke3 {[%clk 0:00:29.6]} 65...
h2 {[%clk 0:00:31.2]} 66. Kf3 {[%clk 0:00:31.5]} 66... h1=Q+ {[%clk 0:00:32.2]}
67. Kf4 {[%clk 0:00:33.4]} 67... Qxd5 {[%clk 0:00:32.7]} 0-1

[Event "*** Titled Tuesday Blitz"]
[Site "Chess.com"]
[Date "2018.09.04"]
[Round "5"]
[White "Abdodi"]
[Black "VeraNebolsina"]
[Result "1-0"]
[WhiteElo "2261"]
[BlackElo "2397"]
[TimeControl "180+2"]
[EndTime "14:42:48 PDT"]
[Termination "Abdodi won by checkmate"]

1. d4 {[%clk 0:03:01.9]} 1... Nf6 {[%clk 0:03:00.2]} 2. c4 {[%clk 0:03:01.8]}
2... g6 {[%clk 0:03:00.8]} 3. Nc3 {[%clk 0:03:00.9]} 3... d5 {[%clk 0:03:01.6]}
4. h4 {[%clk 0:03:00.3]} 4... Bg7 {[%clk 0:03:00.3]} 5. cxd5 {[%clk 0:02:59.1]}
5... Nxd5 {[%clk 0:03:01]} 6. h5 {[%clk 0:03:00]} 6... Nc6 {[%clk 0:02:44.5]} 7.
hxg6 {[%clk 0:02:54.1]} 7... hxg6 {[%clk 0:02:33]} 8. Rxh8+ {[%clk 0:02:53.4]}
8... Bxh8 {[%clk 0:02:34.2]} 9. e4 {[%clk 0:02:46.5]} 9... Nxc3 {[%clk
0:02:07.6]} 10. bxc3 {[%clk 0:02:48.4]} 10... Qd6 {[%clk 0:01:49.5]} 11. Ne2
{[%clk 0:01:48.1]} 11... Be6 {[%clk 0:01:20.3]} 12. d5 {[%clk 0:01:02.2]} 12...
O-O-O {[%clk 0:01:19.2]} 13. Qa4 {[%clk 0:00:50]} 13... Qc5 {[%clk 0:01:00.7]}
14. Bd2 {[%clk 0:00:36.1]} 14... Ne5 {[%clk 0:00:57.2]} 15. Nd4 {[%clk
0:00:30.9]} 15... Bd7 {[%clk 0:00:44.9]} 16. Qb3 {[%clk 0:00:30.9]} 16... b6
{[%clk 0:00:28.2]} 17. a4 {[%clk 0:00:28.8]} 17... a5 {[%clk 0:00:28.2]} 18. Be3
{[%clk 0:00:23.7]} 18... Ng4 {[%clk 0:00:21.2]} 19. Ba6+ {[%clk 0:00:22.2]}
19... Kb8 {[%clk 0:00:19.5]} 20. Nc6+ {[%clk 0:00:23.2]} 20... Bxc6 {[%clk
0:00:16.9]} 21. Bxc5 {[%clk 0:00:23.3]} 21... Ka7 {[%clk 0:00:16.9]} 22. Bxe7
{[%clk 0:00:19.3]} 22... Re8 {[%clk 0:00:17]} 23. d6 {[%clk 0:00:20.7]} 23...
cxd6 {[%clk 0:00:17.2]} 24. Bxd6 {[%clk 0:00:14.7]} 24... Rxe4+ {[%clk
0:00:16.7]} 25. Kf1 {[%clk 0:00:14.7]} 25... Kxa6 {[%clk 0:00:16.4]} 26. f3
{[%clk 0:00:15.6]} 26... Ne3+ {[%clk 0:00:15.9]} 27. Kf2 {[%clk 0:00:15.4]}
27... Re6 {[%clk 0:00:15.5]} 28. Bf4 {[%clk 0:00:15]} 28... Nd5 {[%clk
0:00:14.9]} 29. Bd2 {[%clk 0:00:15.3]} 29... Bf6 {[%clk 0:00:12.6]} 30. Re1
{[%clk 0:00:11.9]} 30... Rd6 {[%clk 0:00:13.2]} 31. g3 {[%clk 0:00:11.6]} 31...
Nc7 {[%clk 0:00:14.2]} 32. Be3 {[%clk 0:00:11.7]} 32... Bd5 {[%clk 0:00:14.9]}
33. Qd1 {[%clk 0:00:09.6]} 33... Rc6 {[%clk 0:00:14.3]} 34. Qe2+ {[%clk
0:00:09.1]} 34... Bc4 {[%clk 0:00:15.5]} 35. Qd2 {[%clk 0:00:10.2]} 35... Nd5
{[%clk 0:00:16.6]} 36. Bd4 {[%clk 0:00:11.5]} 36... Be7 {[%clk 0:00:16.3]} 37.
Re5 {[%clk 0:00:11.5]} 37... Bd6 {[%clk 0:00:16.9]} 38. Re8 {[%clk 0:00:11.9]}
38... Nc7 {[%clk 0:00:16.4]} 39. Rh8 {[%clk 0:00:11.8]} 39... f5 {[%clk
0:00:16.4]} 40. Qg5 {[%clk 0:00:12.2]} 40... f4 {[%clk 0:00:17]} 41. gxf4 {[%clk
0:00:12.5]} 41... Ne6 {[%clk 0:00:18]} 42. Qxg6 {[%clk 0:00:12.5]} 42... Nxd4
{[%clk 0:00:19]} 43. cxd4 {[%clk 0:00:11.5]} 43... Bd5 {[%clk 0:00:20.3]} 44.
Qe8 {[%clk 0:00:11.7]} 44... Rc2+ {[%clk 0:00:20.1]} 45. Ke3 {[%clk 0:00:11.5]}
45... Rc3+ {[%clk 0:00:21.1]} 46. Kd2 {[%clk 0:00:12.3]} 46... Bb4 {[%clk
0:00:21.1]} 47. Qb5+ {[%clk 0:00:11]} 47... Ka7 {[%clk 0:00:22.3]} 48. Qxd5
{[%clk 0:00:12.4]} 48... Rc5+ {[%clk 0:00:22.1]} 49. Kd3 {[%clk 0:00:13.6]}
49... Rxd5 {[%clk 0:00:23.6]} 50. Re8 {[%clk 0:00:13.5]} 50... Bc5 {[%clk
0:00:21.7]} 51. Re4 {[%clk 0:00:13]} 51... b5 {[%clk 0:00:22]} 52. axb5 {[%clk
0:00:13.3]} 52... a4 {[%clk 0:00:22.1]} 53. Kc4 {[%clk 0:00:15.1]} 53... Rf5
{[%clk 0:00:23.1]} 54. dxc5 {[%clk 0:00:16]} 54... a3 {[%clk 0:00:24.5]} 55.
Re7+ {[%clk 0:00:15.5]} 55... Kb8 {[%clk 0:00:25.2]} 56. b6 {[%clk 0:00:12.8]}
56... a2 {[%clk 0:00:25.7]} 57. Ra7 {[%clk 0:00:13.1]} 57... Rxf4+ {[%clk
0:00:25.5]} 58. Kb5 {[%clk 0:00:13.9]} 58... Rxf3 {[%clk 0:00:24.5]} 59. Rxa2
{[%clk 0:00:14.6]} 59... Rb3+ {[%clk 0:00:24.8]} 60. Kc6 {[%clk 0:00:15.6]}
60... Rf3 {[%clk 0:00:25.7]} 61. Re2 {[%clk 0:00:16.3]} 61... Rf6+ {[%clk
0:00:26.2]} 62. Kb5 {[%clk 0:00:17]} 62... Rf5 {[%clk 0:00:27.5]} 63. Re7 {[%clk
0:00:15.6]} 63... Ka8 {[%clk 0:00:26.7]} 64. Ka6 {[%clk 0:00:15.9]} 64... Rxc5
{[%clk 0:00:21.7]} 65. Re8+ {[%clk 0:00:16]} 65... Rc8 {[%clk 0:00:23.3]} 66.
Rxc8# {[%clk 0:00:16.7]} 1-0